Cogmind - Beta 10.2 @@@ ROGUE MODE // 2021.06.14 @ 20:07:00 Player: Nalzok Result: Destroyed by P-60 Hacker with Shock Rifle Performance ------------- Evolutions (4) 2000 Regions Visited (12) 2400 Robots Destroyed (121) 605 Value Destroyed (4187) 4187 Prototype IDs (29) 580 Alien Tech Used (0) 0 Bonus (1629) 1629 TOTAL SCORE: 11401 Bonus ------- High Alert Combat Kills 552 Follower Combat Kills 77 Entered Garrisons 200 Used RIF Installer 500 Aligned with FarCom 300 Cogmind --------- Core Integrity 0/850 Matter 184/300 Energy 520/520 System Corruption 12% Temperature Cool (0) Movement Hovering (76) Location -6/Lower Caves Parts ------- > --- POWER (2) -------- Heavy Deuterium Engine Fission Core > --- PROPULSION (2) --- Combat Airjet Combat Airjet > --- UTILITY (9) ------ Enhanced Optical Array Terrain Scan Processor Advanced Terrain Scan Processor Improved Targeting Computer Relay Coupler [Swarmer] (36) Relay Coupler [Swarmer] (31) Relay Coupler [Hunter] (17) Relay Coupler [Hunter] (14) Drone Bay (2/2) > --- WEAPON (2) ------- Remote Datajack Power Maul > --- INVENTORY (4) ---- Improved Gravmag System Combat Airjet Combat Airjet Improved Proton Missile Launcher Peak State ------------ > --- POWER ------------ Light Angular Momentum Engine Light Angular Momentum Engine > --- PROPULSION ------- Advanced Treads Advanced Treads > --- UTILITY ---------- Improved Heat Sink Improved Heat Sink Humpback Advanced Visual Processing Unit Modified TNC Energy Filter Medium Reactive Plating Improved Thermal Shield > --- WEAPON ----------- Heavy Laser Gauss Cannon > --- INVENTORY -------- Light Fission Core Particle Charger Particle Charger Improved Particle Charger Improved Thermal Shield Shield Generator Relay Coupler [NC] Relay Coupler [NC] Relay Coupler [Swarmer] Relay Coupler [Swarmer] Relay Coupler [Brawler] Relay Coupler [Duelist] Relay Coupler [Sentry] Relay Coupler [Specialist] Relay Coupler [Hunter] Relay Coupler [Hunter] Relay Coupler [Hunter] Proton Cannon Heavy Ion Cannon Heavy Plasma Cannon Gauss Rifle Gauss Rifle Proton Missile Launcher Maul [Rating: 64] Favorites ----------- Power Improved Ion Engine Engine Improved Ion Engine Power Core Light Nuclear Core Propulsion Aluminum Leg Treads Advanced Treads Leg Aluminum Leg Hover Unit Combat Airjet Utility Modified TNC Device Improved Heat Sink Storage Humpback Processor Modified TNC Hackware Relay Coupler [Hunter] Protection Hardened Medium Armor Plating Weapon Gatling Laser Energy Gun Gatling Laser Energy Cannon Advanced Beam Cannon Ballistic Gun Flak Gun Ballistic Cannon Gauss Cannon Launcher Grenade Launcher Special Weapon Remote Datajack Impact Weapon Mace Slashing Weapon Scythe Build | -11 -10 -10 -9 -9 -9 -8 -8 -7 -7 -7 -6 -6 ------- Run | Scr Mat Min Mat Min Exi Min Mat Fac Gar Fac Fac Low Slots Evolved 8 | . . . 2 . . . 2 2 . . 2 . Power 1 | . . . . . . . . . . . 1 . Propulsion . | . . . . . . . . . . . . . Utility 7 | . . . 2 . . . 2 2 . . 1 . Weapon . | . . . . . . . . . . . . . Parts Attached 168 | . 6 1 22 10 2 4 12 8 29 24 50 . Power 20 | . 1 . 3 . . . 2 2 4 2 6 . Engine 11 | . 1 . 3 . . . . . 1 2 4 . Core 9 | . . . . . . . 2 2 3 . 2 . Reactor . | . . . . . . . . . . . . . Propulsion 30 | . 3 . 3 5 . . 4 . 4 5 6 . Treads 7 | . . . . . . . . . 2 3 2 . Leg 20 | . 3 . 3 5 . . 4 . 2 2 1 . Wheel . | . . . . . . . . . . . . . Hover 3 | . . . . . . . . . . . 3 . Flight . | . . . . . . . . . . . . . Utility 58 | . . 1 7 1 2 1 4 3 10 7 22 . Device 23 | . . . 3 1 . 1 1 2 5 2 8 . Storage 4 | . . 1 . . 1 . . . 1 1 . . Processor 14 | . . . 2 . 1 . 1 1 1 3 5 . Hackware 9 | . . . . . . . . . 1 . 8 . Protection 8 | . . . 2 . . . 2 . 2 1 1 . Artifact . | . . . . . . . . . . . . . Weapon 60 | . 2 . 9 4 . 3 2 3 11 10 16 . Energy Gun 15 | . 2 . . 1 . . . . 6 4 2 . Energy Cannon 8 | . . . . . . . 1 2 1 2 2 . Ballistic Gun 14 | . . . 7 1 . 1 . 1 2 . 2 . Ballistic Cannon 6 | . . . . 1 . . . . 1 3 1 . Launcher 9 | . . . 2 1 . 2 1 . 1 . 2 . Special Weapon 1 | . . . . . . . . . . . 1 . Impact Weapon 3 | . . . . . . . . . . 1 2 . Slashing Weapon 4 | . . . . . . . . . . . 4 . Piercing Weapon . | . . . . . . . . . . . . . Special Melee Weapon . | . . . . . . . . . . . . . Unidentified Prototypes 6 | . . . . . . . 1 1 1 2 1 . Parts Lost 63 | . 2 . 1 2 . 2 2 4 25 7 18 . Power 6 | . 1 . . . . . . 1 3 . 1 . Propulsion 10 | . . . 1 1 . . . . 3 2 3 . Utility 29 | . . . . 1 . . 1 1 11 4 11 . Weapon 18 | . 1 . . . . 2 1 2 8 1 3 . Highest Loss Streak 14 | . 2 . 1 2 . 2 2 4 14 7 11 . Average Slot Usage (%) 86 | . 83 90 96 99 95 80 88 91 77 83 86 100 Engine 6 | . 13 14 11 11 11 11 . . 2 7 8 6 Core 2 | . . . . . . . 8 6 3 . 1 6 Treads 2 | . . . . . . . . . 2 6 7 . Leg 13 | . 28 28 21 21 22 22 18 15 11 8 . . Device 10 | . . . 12 19 10 9 6 7 8 9 10 6 Storage 8 | . 14 19 13 11 11 11 9 7 6 6 3 . Processor 16 | . . . 9 11 17 12 18 23 17 23 20 26 Hackware 2 | . . . . . . . . . . 3 11 26 Protection 4 | . . . 6 2 . . 10 15 7 . 5 . Energy Gun 5 | . 27 28 . 4 11 1 . . 7 9 1 . Energy Cannon 1 | . . . . . . . . 14 2 2 1 . Ballistic Gun 4 | . . . 19 10 . 9 9 . . . . . Ballistic Cannon 1 | . . . . 1 . . . . 2 1 4 . Launcher 2 | . . . 1 5 11 3 8 . . . . . Naked Turns . | . . . . . . . . . . . . . Heaviest Build 137 | 13 13 13 21 24 94 98 109 109 118 123 137 33 Greatest Support 44 | 20 20 20 20 30 23 23 35 35 42 44 44 44 Greatest Overweight (x) 7 | . . . 1 2 4 4 4 3 7 3 6 . Average Overweight (x) 1 | . . . . . . 3 3 2 2 2 1 . Largest Inventory Capacity 24 | 6 6 6 6 6 24 24 24 24 24 24 24 4 Average Capacity 17 | 6 6 6 6 6 13 24 24 24 22 23 15 4 Most Carried 24 | 5 6 6 6 6 18 22 24 24 24 24 24 4 Average Carried 16 | 3 5 6 5 5 9 18 23 22 21 22 15 4 Final Capacity 24 | 6 6 6 6 6 24 24 24 24 24 24 4 4 Final Carried 24 | 2 6 6 6 6 18 21 24 24 24 24 4 4 Class Distribution -------------------- 29% | Hauler-Skirmisher 23% | Mutant 21% | Hauler-Mutant 14% | Scavenger-Skirmisher 6% | Scavenger-Mutant Dominant Class ---------------- Mutant | -10/Materials Mutant | -10/Mines Scavenger-Mutant | -9/Materials Mutant | -9/Mines Mutant | -9/Exiles Hauler-Mutant | -8/Mines Hauler-Mutant | -8/Materials Hauler-Skirmisher | -7/Factory Hauler-Skirmisher | -7/Garrison Hauler-Skirmisher | -7/Factory Scavenger-Skirmisher | -6/Factory Bothacker-Mutant | -6/Lower Caves Resources | -11 -10 -10 -9 -9 -9 -8 -8 -7 -7 -7 -6 -6 ----------- Run | Scr Mat Min Mat Min Exi Min Mat Fac Gar Fac Fac Low Matter Collected 2932 | 182 73 27 278 355 120 122 379 174 381 241 600 . Remotely . | . . . . . . . . . . . . . Salvage Created 3824 | . 203 22 391 318 . 216 524 239 633 590 688 . Parts 237 | . 10 3 37 28 . 14 34 6 30 25 50 . Haulers Intercepted 2 | . . . . . . . 2 . . . . . Recyclers Shooed 4 | . . . . . . 1 2 . . . 1 . Parts Field Recycled . | . . . . . . . . . . . . . Retrieved Matter . | . . . . . . . . . . . . . Parts Self-Destructed . | . . . . . . . . . . . . . Prevented . | . . . . . . . . . . . . . Kills | -11 -10 -10 -9 -9 -9 -8 -8 -7 -7 -7 -6 -6 ------- Run | Scr Mat Min Mat Min Exi Min Mat Fac Gar Fac Fac Low Combat Hostiles Destroyed 82 | . 5 . 11 6 . 7 12 2 22 5 12 . Melee 2 | . . . . . . . . . . . 2 . Guns 34 | . 5 . 6 4 . 3 3 . 6 1 6 . Cannons 14 | . . . . . . . . 2 6 4 2 . AOE 30 | . . . 5 2 . 4 9 . 10 . . . Classes Destroyed 15 | . 2 1 4 1 . . 3 1 . 1 2 . Worker 12 | . . . 3 1 . 1 1 3 . . 3 . Builder 7 | . . . 2 1 . . . . . 2 2 . Tunneler 7 | . . 1 . 3 . 1 2 . . . . . Hauler 2 | . . . . . . . 2 . . . . . Recycler 8 | . . . . 2 . 1 1 . . 4 . . Operator 1 | . . . . . . . . . . . 1 . Watcher 2 | . . . 1 . . . 1 . . . . . Swarmer 24 | . 1 . 3 4 . 4 2 . 10 . . . Saboteur 1 | . . . . . . . . . . . 1 . Grunt 34 | . 4 . 5 2 . 3 8 . 8 . 4 . Brawler 2 | . . . . . . . 1 . . . 1 . Duelist 2 | . . . . . . . 1 . . . 1 . Sentry 11 | . . . 3 . . . . 1 4 1 2 . Hunter 3 | . . . . . . . . . . 1 2 . Programmer 5 | . . . . . . . . 1 . 3 1 . Best Kill Streak 10 | . 3 1 6 3 . 5 5 2 10 3 3 . Combat Bots Only 10 | . 3 . 4 2 . 4 4 1 10 2 2 . Max Kills in Single Turn 3 | . 1 1 3 2 . 3 3 1 2 2 2 . Gunslinging . | . . . . . . . . . . . . . Exploded 2 | . . . 2 2 . 2 2 . 2 . . . Melee 1 | . . . . . . . . . . . 1 . Uniques/NPCs Destroyed . | . . . . . . . . . . . . . Combat | -11 -10 -10 -9 -9 -9 -8 -8 -7 -7 -7 -6 -6 -------- Run | Scr Mat Min Mat Min Exi Min Mat Fac Gar Fac Fac Low Damage Taken 9429 | . 299 21 505 334 . 321 611 501 3104 742 2692 299 Core 1770 | . 49 6 121 69 . 31 32 5 531 74 776 76 Absorbed by Shields 60 | . . . 34 . . . . . 26 . . . Core Remaining (%) 65 | 100 . 78 . . . 44 94 . . 12 . . Volleys Fired 272 | . 22 1 35 23 . 19 29 12 52 29 50 . Largest 2 | . 2 2 2 2 . 2 2 2 2 2 2 . Hottest 155 | . 80 80 53 110 . 119 96 136 149 130 155 . Shots Fired 458 | . 39 2 63 38 . 24 45 23 87 57 80 . Gun 306 | . 39 2 55 36 . 19 29 . 54 26 46 . Cannon 113 | . . . . . . . 2 23 25 31 32 . Launcher 39 | . . . 8 2 . 5 14 . 8 . 2 . Special . | . . . . . . . . . . . . . Kinetic 183 | . . . 55 27 . 8 29 . 20 15 29 . Thermal 174 | . 5 1 . 9 . 11 2 23 59 32 32 . Explosive 37 | . . . 8 2 . 5 14 . 8 . . . Electromagnetic 64 | . 34 1 . . . . . . . 10 19 . Robot Hit Streak 14 | . 4 4 13 6 . 11 8 5 14 8 9 . Robot Miss Streak 12 | . 7 . 3 4 . 5 12 4 6 2 3 . Penetration Max 1 | . . . . 1 . . . . . . . . Secondary Targets . | . . . . . . . . . . . . . Shots Hit Robots 322 | . 22 1 45 22 . 23 36 12 58 26 70 7 Core Hits 230 | . 9 1 29 18 . 21 47 8 48 14 34 1 Critical Hits 10 | . . . 1 . . . . 1 2 1 5 . Critical Kills 4 | . . . 1 . . . . 1 1 . 1 . Critical Parts Destroyed 5 | . . . . . . . . . 1 1 3 . Melee Attacks 43 | . . . . . . . . . . 1 35 7 Impact 8 | . . . . . . . . . . 1 . 7 Slashing 35 | . . . . . . . . . . . 35 . Piercing . | . . . . . . . . . . . . . Sneak Attacks 4 | . . . . . . . . . . . 4 . Combat Hostiles . | . . . . . . . . . . . . . Follow-up Attacks . | . . . . . . . . . . . . . Damage Inflicted 9744 | . 283 12 908 456 . 721 1946 341 2121 736 1974 246 Guns 3859 | . 260 12 499 347 . 320 478 . 837 351 755 . Cannons 1482 | . . . . . . . . 341 282 385 474 . Explosions 3531 | . 23 . 409 109 . 401 1468 . 1001 . 120 . Melee 871 | . . . . . . . . . . . 625 246 Ramming 1 | . . . . . . . . . 1 . . . Kinetic 2296 | . . . 499 235 . 118 478 . 271 240 455 . Thermal 2477 | . 66 . . 112 . 202 . 341 848 371 537 . Explosive 3388 | . . . 409 109 . 401 1468 . 1001 . . . Electromagnetic 711 | . 217 12 . . . . . . . 125 357 . Impact 246 | . . . . . . . . . . . . 246 Slashing 625 | . . . . . . . . . . . 625 . Piercing . | . . . . . . . . . . . . . Highest Corruption 12 | . . . . . . . . . . 11 8 12 Average Corruption 6 | . . . . . . . . . . 6 7 9 Corruption Purged . | . . . . . . . . . . . . . Effects 63 | . . . . . . . . . . 38 24 1 Message Errors 17 | . . . . . . . . . . 10 7 . Matter Fused 11 | . . . . . . . . . . 4 6 1 Heat Flow Errors 6 | . . . . . . . . . . 3 3 . Energy Discharges 7 | . . . . . . . . . . 4 3 . Parts Rejected 2 | . . . . . . . . . . 2 . . Data Loss (minor) 5 | . . . . . . . . . . 3 2 . Data Loss (major) 2 | . . . . . . . . . . 1 1 . Misfires 2 | . . . . . . . . . . 2 . . Targeting Errors 11 | . . . . . . . . . . 9 2 . Overload Shots . | . . . . . . . . . . . . . Overflow Damage 318 | . . . . 4 . . 142 34 17 19 64 38 Projectiles 72 | . . . . . . . . 34 17 19 2 . Explosions 146 | . . . . 4 . . 142 . . . . . Melee 100 | . . . . . . . . . . . 62 38 Knockbacks 4 | . . . . . . . . . 1 2 . 1 Impact 1 | . . . . . . . . . . . . 1 Kinetic 3 | . . . . . . . . . 1 2 . . Secondary . | . . . . . . . . . . . . . Self-Inflicted Damage 435 | . 29 . 61 30 . 44 260 . 11 . . . Shots 14 | . 1 . 3 1 . 1 7 . 1 . . . Rammed 1 | . . . . . . . . . 1 . . . Targets Rammed 1 | . . . . . . . . . 1 . . . Kicked . | . . . . . . . . . . . . . Crushed . | . . . . . . . . . . . . . Highest Temperature 495 | . 204 18 9 39 . 348 152 495 457 255 364 . Average Temperature 103 | . 90 12 2 15 . 151 46 139 122 77 128 . Received Heat Transfer 2369 | . 126 . 165 135 . 153 117 144 773 102 654 . Effects 11 | . . . . . . 2 . 5 4 . . . Shutdowns 1 | . . . . . . . . . 1 . . . Energy Bleed 1 | . . . . . . . . 1 . . . . Interference 4 | . . . . . . 1 . . 3 . . . Short Circuit 1 | . . . . . . 1 . . . . . . Damage (major) 4 | . . . . . . . . 4 . . . . Siege Activations . | . . . . . . . . . . . . . Robots Corrupted 1 | . . . . . . . . . . . 1 . Combat Hostiles 1 | . . . . . . . . . . . 1 . Parts Fried 7 | . 2 . . . . . . . . . 5 . Impact Corruptions 2 | . . . . . . . . . . . . 2 Robots Melted . | . . . . . . . . . . . . . Combat Hostiles . | . . . . . . . . . . . . . Parts Melted 9 | . 1 . . 1 . . . . 6 . 1 . Heat Transferred 4650 | . 150 . . 250 . 450 . 518 1665 563 1054 . Parts Sabotaged 4 | . . . . . . . . . . . 4 . Parts Stolen . | . . . . . . . . . . . . . Parts Stripped . | . . . . . . . . . . . . . Power Chain Reactions 2 | . 1 . . . . . . . . . 1 . Missiles Intercepted . | . . . . . . . . . . . . . Alert | -11 -10 -10 -9 -9 -9 -8 -8 -7 -7 -7 -6 -6 ------- Run | Scr Mat Min Mat Min Exi Min Mat Fac Gar Fac Fac Low Peak Influence 1197 | . 157 66 290 177 . 219 473 617 1197 632 604 . Initial 602 | . . 61 25 76 . . . 214 249 602 185 . Average 364 | . 89 63 115 63 . 98 177 295 871 477 382 . Maximum Alert Level 4 | . . . 1 . . 1 2 2 4 2 2 . Low Security (%) 39 | 100 100 100 78 100 . 67 70 . . . 22 . Level 1 20 | . . . 21 . . 32 21 81 11 25 20 . Level 2 23 | . . . . . . . 8 18 4 74 57 . Level 3 10 | . . . . . . . . . 57 . . . Level 4 4 | . . . . . . . . . 25 . . . Level 5 . | . . . . . . . . . . . . . High Security . | . . . . . . . . . . . . . Max Security . | . . . . . . . . . . . . . Squads Dispatched 21 | . . . 3 . . . 1 3 . 5 9 . Investigation 3 | . . . 1 . . . . . . 1 1 . Extermination 6 | . . . . . . . . 1 . 3 2 . Reinforcement 5 | . . . 2 . . . 1 . . 1 1 . Assault 1 | . . . . . . . . . . . 1 . Garrison 6 | . . . . . . . . 2 . . 4 . Intercept . | . . . . . . . . . . . . . Construction Impeded 2 | . . . . . . . . . . 1 1 . Haulers Reinforced . | . . . . . . . . . . . . . Stealth | -11 -10 -10 -9 -9 -9 -8 -8 -7 -7 -7 -6 -6 --------- Run | Scr Mat Min Mat Min Exi Min Mat Fac Gar Fac Fac Low Distress Signals 12 | . 2 . 3 . . . 5 . . . 2 . Communications Jammed . | . . . . . . . . . . . . . Distress Signals . | . . . . . . . . . . . . . Times Spotted 143 | . 12 3 22 8 . 4 25 7 31 6 24 1 Peak Tracking Total 11 | . 6 3 8 3 . 3 4 2 11 2 5 1 Tactical Retreats 14 | . 2 . . 1 . . 2 . 6 . 3 . Traps | -11 -10 -10 -9 -9 -9 -8 -8 -7 -7 -7 -6 -6 ------- Run | Scr Mat Min Mat Min Exi Min Mat Fac Gar Fac Fac Low Traps Triggered 7 | . . . 1 . . . . . 3 1 2 . Indirectly . | . . . . . . . . . . . . . Trap Hack Attempts . | . . . . . . . . . . . . . Triggered . | . . . . . . . . . . . . . Disarmed . | . . . . . . . . . . . . . Reprogrammed . | . . . . . . . . . . . . . Reused . | . . . . . . . . . . . . . Traps Extracted . | . . . . . . . . . . . . . Installed . | . . . . . . . . . . . . . Triggered . | . . . . . . . . . . . . . Machines | -11 -10 -10 -9 -9 -9 -8 -8 -7 -7 -7 -6 -6 ---------- Run | Scr Mat Min Mat Min Exi Min Mat Fac Gar Fac Fac Low Machines Disabled 22 | . . . 1 1 . 1 5 10 4 . . . Max in Single Turn 2 | . . . 1 1 . 1 2 . 1 . . . Garrison Access 2 | . . . . . . . . . . . 2 . Garrison Relay 3 | . . . . . . . . . 3 . . . Machines Sabotaged . | . . . . . . . . . . . . . Garrisons Compromised . | . . . . . . . . . . . . . Overloaded Fab Kills . | . . . . . . . . . . . . . Fab Network Shutdowns 1 | . . . . . . . . . . . 1 . Hacking | -11 -10 -10 -9 -9 -9 -8 -8 -7 -7 -7 -6 -6 --------- Run | Scr Mat Min Mat Min Exi Min Mat Fac Gar Fac Fac Low Machines Accessed 28 | . 1 . 6 1 2 . 5 3 . 1 9 . Terminals 15 | . 1 . 6 . . . 3 1 . 1 3 . Fabricators 2 | . . . . . . . . . . . 2 . Repair Stations 4 | . . . . . . . 2 1 . . 1 . Recycling Units . | . . . . . . . . . . . . . Scanalyzers 1 | . . . . . . . . . . . 1 . Garrison Access 3 | . . . . . . . . 1 . . 2 . Total Hacks 65 | . 2 . 12 1 5 . 11 5 . 3 26 . Successful 36 | . 2 . 4 1 5 . 7 4 . . 13 . Failed 29 | . . . 8 . . . 4 1 . 3 13 . Catastrophic 9 | . . . 2 . . . 2 . . 1 4 . Database Lockouts . | . . . . . . . . . . . . . Manual 20 | . 1 . 9 . 1 . 3 2 . . 4 . Terminals 32 | . 2 . 12 . . . 6 2 . 3 7 . Fabricators 9 | . . . . . . . . . . . 9 . Repair Stations 11 | . . . . . . . 5 2 . . 4 . Recycling Units . | . . . . . . . . . . . . . Scanalyzers 3 | . . . . . . . . . . . 3 . Garrison Access 4 | . . . . . . . . 1 . . 3 . Terminal Hacks 14 | . 1 . 2 1 5 . 2 . . . 3 . Record 4 | . . . . . 4 . . . . . . . Part Schematic 1 | . . . . . . . . . . . 1 . Open Door 1 | . . . . 1 . . . . . . . . Branch Access Points 3 | . 1 . 1 . . . 1 . . . . . Machine Index 1 | . . . . . . . 1 . . . . . Unreport Threat 3 | . . . 1 . . . . . . . 2 . EX-Prototype ID Bank 1 | . . . . . 1 . . . . . . . Fabricator Hacks 5 | . . . . . . . . . . . 5 . Load Schematic 1 | . . . . . . . . . . . 1 . Build 4 | . . . . . . . . . . . 4 . Repair Station Hacks 6 | . . . . . . . 3 2 . . 1 . Scan Component 4 | . . . . . . . 2 1 . . 1 . Repair 2 | . . . . . . . 1 1 . . . . Recycling Unit Hacks . | . . . . . . . . . . . . . Scanalyzer 1 | . . . . . . . . . . . 1 . Insert Component 1 | . . . . . . . . . . . 1 . Garrison Access Hacks 4 | . . . . . . . . 1 . . 3 . Unlock Access 2 | . . . . . . . . 1 . . 1 . Seal Access 2 | . . . . . . . . . . . 2 . Unauthorized Hacks 6 | . 1 . 2 . . . 2 1 . . . . Terminals 6 | . 1 . 2 . . . 2 1 . . . . Botnet 5 | . 1 . 2 . . . 1 1 . . . . Operators 1 | . . . . . . . 1 . . . . . Fabricators . | . . . . . . . . . . . . . Repair Stations . | . . . . . . . . . . . . . Recycling Units . | . . . . . . . . . . . . . Scanalyzers . | . . . . . . . . . . . . . Garrison Access . | . . . . . . . . . . . . . Data Cores Recovered 1 | . . . . . . . . . . . 1 . Used . | . . . . . . . . . . . . . Hacking Detections 22 | . 1 . 6 . . . 4 3 . 1 7 . Full Trace Events 3 | . . . 1 . . . . . . 1 1 . Feedback Events 1 | . . . . . . . . . . 1 . . Corruption 1 | . . . . . . . . . . 1 . . Feedback Blocked . | . . . . . . . . . . . . . Robot Schematics Acquired . | . . . . . . . . . . . . . Robots Built . | . . . . . . . . . . . . . Matter . | . . . . . . . . . . . . . Time . | . . . . . . . . . . . . . Total Robot Build Rating . | . . . . . . . . . . . . . Part Schematics Acquired 1 | . . . . . . . . . . . 1 . Parts Built 2 | . . . . . . . . . . . 2 . Matter 212 | . . . . . . . . . . . 212 . Time 106 | . . . . . . . . . . . 106 . Total Part Build Rating 12 | . . . . . . . . . . . 12 . Parts Repaired 2 | . . . . . . . 1 1 . . . . Time 75 | . . . . . . . 53 22 . . . . Parts Recycled . | . . . . . . . . . . . . . Recycled Matter . | . . . . . . . . . . . . . Retrieved Matter . | . . . . . . . . . . . . . Retrieved Components . | . . . . . . . . . . . . . Parts Scanalyzed 1 | . . . . . . . . . . . 1 . Part Schematics Acquired . | . . . . . . . . . . . . . Parts Damaged . | . . . . . . . . . . . . . Bothacking | -11 -10 -10 -9 -9 -9 -8 -8 -7 -7 -7 -6 -6 ------------ Run | Scr Mat Min Mat Min Exi Min Mat Fac Gar Fac Fac Low Used RIF Installer 1 | . . . . . . . . . 1 . . . Robots Hacked . | . . . . . . . . . . . . . Non-combat . | . . . . . . . . . . . . . Combat . | . . . . . . . . . . . . . Robot Hacks Applied . | . . . . . . . . . . . . . Relay Couplers Released 12 | . . . . . . . . . 12 . . . Machine Destruction 12 | . . . . . . . . . 12 . . . Attached 9 | . . . . . . . . . 1 . 8 . Robots Rewired 1 | . . . . . . . . 1 . . . . Allies Hacked . | . . . . . . . . . . . . . Hacks Repelled . | . . . . . . . . . . . . . Allies | -11 -10 -10 -9 -9 -9 -8 -8 -7 -7 -7 -6 -6 -------- Run | Scr Mat Min Mat Min Exi Min Mat Fac Gar Fac Fac Low Total Allies 7 | . . 2 . 1 . . . 1 . . 3 . Largest Group 3 | . . 2 . 1 . . . 1 . . 3 . Highest-Rated Group 93 | . . 50 . 31 . . . 34 . . 93 . Highest-Rated Ally 34 | . . 31 . 31 . . . 34 . . 31 . Total Orders . | . . . . . . . . . . . . . Ally Attacks 18 | . . . . 1 . . . 8 . . 9 . Total Damage 828 | . . . . 21 . . . 682 . . 125 . Kills 9 | . . . . 1 . . . 7 . . 1 . Allies Corrupted . | . . . . . . . . . . . . . Allies Melted . | . . . . . . . . . . . . . Intel | -11 -10 -10 -9 -9 -9 -8 -8 -7 -7 -7 -6 -6 ------- Run | Scr Mat Min Mat Min Exi Min Mat Fac Gar Fac Fac Low Robot Analysis Total . | . . . . . . . . . . . . . Derelict Logs Recovered 2 | . . . . 2 . . . . . . . . Drone Launches . | . . . . . . . . . . . . . Drone Recoveries . | . . . . . . . . . . . . . Exploration | -11 -10 -10 -9 -9 -9 -8 -8 -7 -7 -7 -6 -6 ------------- Run | Scr Mat Min Mat Min Exi Min Mat Fac Gar Fac Fac Low Turns Passed 8607 | 3 246 82 461 1056 406 856 771 477 1533 1064 1610 42 Spaces Moved 4273 | 1 135 65 268 700 263 367 268 181 614 390 995 26 Core 212 | . . . . . . . . . 4 . 208 . Treads 672 | . . . . . . . . . 121 185 366 . Legs 2942 | 1 135 65 268 700 263 367 268 181 489 205 . . Wheels . | . . . . . . . . . . . . . Hover 447 | . . . . . . . . . . . 421 26 Flight . | . . . . . . . . . . . . . Fastest Speed 50 | 120 120 120 120 120 120 210 215 185 100 145 50 76 Average Speed 162 | 120 120 120 123 129 148 218 234 214 204 198 123 76 Slowest Speed 330 | 120 120 120 150 180 240 240 240 215 330 210 265 76 Overloaded Moves . | . . . . . . . . . . . . . Propulsion Burnouts . | . . . . . . . . . . . . . Robots Hopped . | . . . . . . . . . . . . . Cave-ins Triggered . | . . . . . . . . . . . . . Exploration Rate (%) 36 | 2 32 26 40 97 64 63 28 7 71 9 32 8 Regions Visited 12 Branch Regions 5 Pre-discovered Areas 2 | . . . . 1 1 . . . . . . . Known Exits Taken 4 | . 1 . 1 . . . 1 1 . . . . Unknown Exits Taken 7 | 1 . 1 . 1 1 1 . . . 1 1 . Scrap Searched 5 | . . 2 . 3 . . . . . . . . Spaces Dug 30 | . . . . . . . 12 . . 1 17 . Terrain Destroyed 334 | . 5 . 31 14 . 66 156 . 38 2 22 . Melee 18 | . . . . . . . . . . 1 17 . Projectile 3 | . . . . . . . . . . 1 2 . AOE 313 | . 5 . 31 14 . 66 156 . 38 . 3 . Terrain Rammed . | . . . . . . . . . . . . . Walls Destroyed . | . . . . . . . . . . . . . Machines Disabled . | . . . . . . . . . . . . . Actions | -11 -10 -10 -9 -9 -9 -8 -8 -7 -7 -7 -6 -6 --------- Run | Scr Mat Min Mat Min Exi Min Mat Fac Gar Fac Fac Low Total 5392 | 4 184 66 340 815 279 396 366 251 798 622 1233 38 Wait 368 | . 10 . . 68 . 1 29 22 37 134 62 5 Move 4262 | . 134 64 267 699 262 366 267 181 613 389 994 26 Hop . | . . . . . . . . . . . . . Pick Up 149 | . 7 . 2 5 12 6 14 12 42 29 20 . Fast Attach 67 | . . 1 11 4 2 . 4 2 10 13 20 . Attach 43 | . 2 . 1 . . 2 2 3 14 4 15 . Detach 9 | . . . 1 . . . 2 . 1 2 3 . Swap 58 | . 4 . 10 6 . 2 6 3 5 7 15 . Drop 96 | 4 5 . 13 10 3 . 13 10 10 9 19 . Fire 272 | . 22 1 35 23 . 19 29 12 52 29 50 . Melee 43 | . . . . . . . . . . 1 35 7 Ram . | . . . . . . . . . . . . . Kick . | . . . . . . . . . . . . . Crush 1 | . . . . . . . . . 1 . . . Escape Stasis 18 | . . . . . . . . . 13 5 . . Rewire 6 | . . . . . . . . 6 . . . . Trap . | . . . . . . . . . . . . . Miscellaneous . | . . . . . . . . . . . . . Route ------- -11/Scrapyard -10/Materials -10/Mines -9/Materials (discovered 4 exits: *Mat / *Min / *Sto x2) -9/Mines (discovered 3 exits: *Mat x2 / *Exi) -9/Exiles (discovered 2 exits: *Min x2) -8/Mines -8/Materials (discovered 2 exits: *Fac x2) -7/Factory -7/Garrison (discovered 2 exits: *Fac x2) -7/Factory -6/Factory -6/Lower Caves History --------- Turn | Location | Event 4 | -11/Scrapyard | Discovered new exit (range 0) 4 | -11/Scrapyard | Entered Materials 66 | -10/Materials | Identified exit to Mines 250 | -10/Materials | Entered Mines 321 | -10/Mines | Build established: Mutant 327 | -10/Mines | Discovered new exit (range 5) 332 | -10/Mines | Entered Materials 332 | -9/Materials | Evolved 2 slots: Utility x2 434 | -9/Materials | Discovered new exit (range 16) 442 | -9/Materials | Identified exit to Mines 442 | -9/Materials | Identified exit to Storage 669 | -9/Materials | Discovered new exit (range 17) 793 | -9/Materials | Entered Mines 796 | -9/Mines | Build established: Scavenger-Mutant 806 | -9/Mines | YI-UF0 nonchalantly dropped a Grenade Launcher on the ground 917 | -9/Mines | Discovered new exit (range 5) 1043 | -9/Mines | Learned 4 Materials zone layouts 1095 | -9/Mines | Met a Derelict who couldn't figure out how to use a Trap Extractor 1245 | -9/Mines | Received a Mining Laser from a helpful Derelict 1336 | -9/Mines | Discovered new exit (range 10) 1406 | -9/Mines | Build established: Mutant 1725 | -9/Mines | Deemed a non-threat by the Exiles lab entrance 1725 | -9/Mines | Discovered new exit (range 5) 1849 | -9/Mines | Entered Exiles 1865 | -9/Exiles | Discovered new exit (range 17) 1878 | -9/Exiles | Met 8R-AWN 1900 | -9/Exiles | Met EX-HEX 1931 | -9/Exiles | Met EX-BIN 1945 | -9/Exiles | Aligned with FarCom system 1947 | -9/Exiles | Given EX-Vault access code 1974 | -9/Exiles | Opened EX-Vault 1990 | -9/Exiles | Found Modified TNC 2019 | -9/Exiles | Warned to stay clear of 0b10 Research branches 2047 | -9/Exiles | Met EX-DEC 2061 | -9/Exiles | Learned location of Zion (-6) 2233 | -9/Exiles | Discovered new exit (range 10) 2255 | -9/Exiles | Left Exiles lab with Modified TNC 2255 | -9/Exiles | Entered Mines 2372 | -8/Mines | Core integrity fell below 50% 2405 | -8/Mines | Build established: Hauler-Mutant 3092 | -8/Mines | Discovered new exit (range 6) 3111 | -8/Mines | Entered Materials 3111 | -8/Materials | Evolved 2 slots: Utility x2 3112 | -8/Materials | Identified exit to Factory 3416 | -8/Materials | Repaired Broken Carbon-fiber Leg 3820 | -8/Materials | Build established: Hauler-Skirmisher 3834 | -8/Materials | Discovered exit to Factory (range 18) 3882 | -8/Materials | Entered Factory 3882 | -7/Factory | Evolved 2 slots: Utility x2 3966 | -7/Factory | Repaired Hvy. Missile Launcher 4240 | -7/Factory | Garrison activated, responded to threat 4359 | -7/Factory | Identified exit to Garrison 4359 | -7/Factory | Entered Garrison 4388 | -7/Garrison | Lost 4 parts (1p1u2w) 4436 | -7/Garrison | Triggered checkpoint 4453 | -7/Garrison | Garrison Relay disabled 4537 | -7/Garrison | Triggered checkpoint 4569 | -7/Garrison | Triggered checkpoint 4605 | -7/Garrison | Destroyed 10 combat bots 4617 | -7/Garrison | Lost 4 parts (3u1w) 4748 | -7/Garrison | Discovered new exit (range 9) 4788 | -7/Garrison | Triggered checkpoint 4844 | -7/Garrison | Garrison Relay disabled 5113 | -7/Garrison | Core integrity fell below 50% 5166 | -7/Garrison | Lost 14 parts (1p2n6u5w) 5600 | -7/Garrison | Discovered new exit (range 14) 5628 | -7/Garrison | Identified exit to Factory 5647 | -7/Garrison | Installed Relay Interface Framework 5694 | -7/Garrison | Build established: Scavenger-Skirmisher 5708 | -7/Garrison | Triggered checkpoint 5749 | -7/Garrison | Garrison Relay disabled 5892 | -7/Garrison | Entered Factory 5894 | -7/Factory | Lost 5 parts (1p2u2w) 6197 | -7/Factory | Build established: Hauler-Skirmisher 6483 | -7/Factory | Discovered new exit (range 8) 6498 | -7/Factory | Core integrity fell below 20% 6534 | -7/Factory | Lost 7 parts (2n4u1w) 6941 | -7/Factory | System corruption reached 10% 6956 | -7/Factory | Entered another Factory area 6956 | -6/Factory | Evolved 2 slots: Power x1, Utility x1 7156 | -6/Factory | Local fabrication network quarantined 7224 | -6/Factory | Fabricated Imp. Thermal Shield (x2) 7255 | -6/Factory | Build established: Scavenger-Skirmisher 7464 | -6/Factory | Garrison activated, responded to threat 7656 | -6/Factory | First assault squad dispatched 7678 | -6/Factory | Allied Derelicts emerged from ambush trap array 7709 | -6/Factory | Garrison activated, responded to threat 7914 | -6/Factory | Core integrity fell below 50% 7953 | -6/Factory | Lost 11 parts (1p2n5u3w) 7985 | -6/Factory | Identified exit to Garrison 8022 | -6/Factory | Core integrity fell below 20% 8047 | -6/Factory | Lost 5 parts (1n4u) 8163 | -6/Factory | Build established: Mutant 8521 | -6/Factory | Discovered new exit (range 14) 8566 | -6/Factory | Entered Lower Caves 8594 | -6/Lower Caves | System corruption reached 10% 8608 | -6/Lower Caves | Destroyed by P-60 Hacker with Shock Rifle Last Messages --------------- Loaded successfully: Mni. Drone Bay Rating: 6 Time: 106 Matter: 212 Initiate build sequence. 08554_ Discarded Target Analyzer. 08554_ Acquired Drone Bay. 08556_ ALERT: Rogue bot located, Programmers report to Factory Zone 1T. 08558_ Dropped Proton Missile Launcher. 08558_ Acquired Imp. Proton Missile Launcher. LOCATION=UNKNOWN GOAL=ESCAPE 08591_ P-60 Hacker knocked back. 08594_ Destroyed Imp. Heat Sink. 08594_ P-60 Hacker system corrupted by crushing effect. 08605_ System corrupted: Matter fused (-5). 08606_ Destroyed Imp. Heat Sink. 08606_ P-60 Hacker system corrupted by crushing effect. Map ----- +----------------------------------------------------+ | ?????????????????????????????????????????????????? | | ?????????????????????????????????????????????????? | | ?????????????????????????????????????????????????? | | ?????????????????????????????????????????????????? | | ?????????????????????????????????????????????????? | | ?????????????????????????????????????????????????? | | ?????????????????????????????????????????????????? | | ?????????????????????????????????????????????????? | | ?????????????????????????????????????????????????? | | ????????????????#####?????????####???????????????? | | ???????????????## ???????### ##??????????????? | | ???????????????? ?####### ###########????? | | ????????????????? ?# ?????? | | ?????????????????# #?# ?????????? | | ?????????????????# ### #????????????? | | ?????????????????# #?# #?????????????? | | ?????????????????# ### ###?????????????? | | ??????????????????# # ##???????????????? | | ??????????????????# ## #????????????????? | | ??????????????????## #####?# #????????????????? | | ???????????????????# ##???# #????????????????? | | ???????????????????## ###?# #????????????????? | | ????????????????????### #?# #????????????????? | | ??????????????????????## #?# #????????????????? | | ???????????????????????## p### #????????????????? | | ???????????????????????##@ ####?????????????? | | ???????????????????????# #????????? | | ??????????????????????# ### #????????? | | ?????????????????????# ##?## ##????????? | | ?????????????????????# #????# ## #?????????? | | ???????????????????? #????? #???#?????????? | | ?????????????????? #????? #?????????????? | | ???????????????? ##????? #?????????????? | | ?????????????? #??????? #?????????????? | | ????????????? ##??????? ?????????????? | | ???????????? #### ##???????? ?????????????? | | ????????????????# ##??????????? ????????????? | | ???????????????# ????????????? ????????????? | | ??????????????# ????????????? ???????????? | | ?????????????? ?????????????? ???????????? | | ????????????? ??????????????? ??????????? | | ????????????? ????????????????? ??????????? | | ???????????? ####????????????????????????????? | | ???????????? ????????????????????????????????? | | ??????????????? ?????????????????????????????????? | | ?????????????????????????????????????????????????? | | ?????????????????????????????????????????????????? | | ?????????????????????????????????????????????????? | | ?????????????????????????????????????????????????? | | ?????????????????????????????????????????????????? | +----------------------------------------------------+ Best States ------------- Heat Dissipation 65 Energy Generation 31 Energy Capacity 520 Matter Stores 350 Matter Capacity 350 Sight Range 22 Robot Scan Range 13 Terrain Scan Density 285 Armor Coverage 675 Resistance: KI 30 Resistance: TH 25 Propulsion Shielding 33 Evasion (%) 50 Targeting Accuracy 6 Target Analysis 5 Recoil Reduction 2 Energy Filtering 30 Particle Charging 15 Relay Coupler Types 119 Relay Coupler Value 3 Item Schematics ----------------- Mni. Drone Bay | -6/Factory | Hacked Robot Schematics ------------------ None Fabricated ------------ Imp. Thermal Shield | x2 | -6/Factory | Preloaded Alien Tech Used ----------------- None Achievements -------------- None Challenges ------------ None Game ------ Seed IonSurgeBroadsword Manual? 0 Play Time 01:03:45 Cumulative 324.5 hours Start 2021.06.14 @ 01:18:38 End 2021.06.14 @ 20:07:00 Sessions 4 Manual Loads 0 Difficulty Rogue Special Mode None Game No. 460 Rogue 459 Adventurer 0 Explorer 1 Win Type - Total 2 Types 2/0/0/0/0/0/0/0/0 Lore% 72 Gallery% 84 Achievement% 60 Wizard Run 0 Options --------- ASCII 1 Keyboard 1 Movement Vi Keybinds 0 Fullscreen 2 Font 14/Cog Map View 72x54 Tactical HUD 1 Map Filters NONE Filters LOW_CONTRAST(13,24,33) Steam 0 RUN: 638209fd-5d17-41f6-93d9-5a48b0935769